bitfinex/quotes_ETHUSD_20250804
["timestamp","ask_amount","ask_price","bid_price","bid_amount"]
[1754344877410,0.25132387,3719.4,3719.3,2.68867797]
[1754344877737,0.25132387,3719.4,3719.3,3.18537797]
[1754344878448,0.25132387,3719.4,3719.3,4.44832633]
[1754344878653,4.289,3719.4,3719.3,4.44832633]
[1754344878805,4.289,3719.4,3719.3,4.4281704]
[1754344879311,0.002,3719.6,3719.3,4.4281704]
[1754344879312,0.002,3719.6,3719.5,2.6885334]
[1754344879513,4.54028274,3719.6,3719.5,2.6885334]
[1754344879732,4.54028274,3719.6,3719.5,3.7810334]
[1754344880139,30.0,3719.5,3717.0,2.69032475]
[1754344880344,0.55,3719.0,3717.4,2.69004789]
[1754344880523,0.1344,3718.3,3717.6,0.1354]
[1754344880713,4.301,3718.2,3717.6,2.82526376]
[1754344880913,6.99047867,3718.2,3717.6,0.1354]
[1754344881306,2.68954612,3718.1,3717.6,0.1354]
[1754344881749,4.301,3718.2,3717.7,2.68976647]
[1754344881945,4.301,3718.2,3717.8,2.68969917]
[1754344882113,4.301,3718.2,3717.9,2.68963469]
[1754344882734,0.4686,3718.7,3717.7,3.46902663]
[1754344882735,0.9338,3719.1,3718.0,0.4967]
[1754344882940,0.1344,3718.6,3718.0,3.32070364]
[1754344883243,4.296,3718.5,3718.0,3.32070364]
[1754344883414,4.296,3718.5,3718.0,2.82400364]
[1754344883848,4.296,3718.5,3718.0,0.1344]
[1754344884351,0.25142165,3718.4,3718.0,2.82400275]
[1754344884541,0.25142165,3718.3,3718.0,2.82400275]
[1754344884845,4.54642165,3718.2,3718.0,2.82400275]
[1754344885018,0.25142165,3718.1,3718.0,2.82400275]
[1754344885651,0.25142165,3718.1,3718.0,3.32070275]
[1754344885652,4.54342165,3718.1,3718.0,3.32070275]
[1754344885946,4.54342165,3718.1,3718.0,4.3831485]
[1754344886647,4.292,3718.1,3718.0,4.3831485]
[1754344886850,4.29,3718.1,3718.0,1.69354575]
[1754344887147,0.002,3719.4,3718.0,1.0925]
[1754344887148,0.1344,3719.3,3718.0,1.0925]
[1754344887350,4.54147075,3719.2,3719.1,2.68875893]
[1754344887550,4.54147075,3719.2,3718.3,2.68940107]
[1754344887854,4.29,3719.2,3719.1,2.68882256]
[1754344888021,4.53944509,3719.2,3719.1,2.68882256]
[1754344888220,4.53944509,3719.2,3719.1,3.18552256]
[1754344888554,4.53944509,3719.2,3719.1,3.64692256]
[1754344889253,4.53844509,3719.2,3719.1,3.64692256]
[1754344890353,4.53844509,3719.2,3719.1,3.18552256]
[1754344890850,4.287,3719.2,3719.1,3.18552256]
[1754344891054,4.53857979,3719.2,3719.1,3.83254566]
[1754344891268,0.25157979,3719.2,3719.1,4.29394566]
[1754344891422,4.53357979,3719.2,3719.1,4.29394566]
[1754344891623,4.53364297,3719.2,3719.1,3.64692256]
[1754344892853,4.282,3719.2,3719.1,3.64692256]
[1754344894465,4.282,3719.2,3719.0,0.1344]
[1754344894769,4.282,3719.2,3718.4,0.1344]
[1754344894770,2.82330187,3719.0,3718.4,0.1344]
[1754344894923,2.8235949,3718.6,3717.9,2.68962845]
[1754344895126,0.9338,3719.1,3717.6,0.001]
[1754344895127,2.68933649,3718.4,3717.6,0.001]
[1754344895324,0.1344,3718.4,3717.9,2.68964466]
[1754344895556,0.1344,3718.4,3717.7,0.1344]
[1754344895765,0.9338,3718.3,3718.0,2.68959386]
[1754344895990,4.278,3718.2,3718.0,2.68959386]
[1754344896465,4.278,3718.2,3717.9,2.68967267]
[1754344896659,4.7432,3718.2,3718.0,2.68957044]
[1754344897048,4.7432,3718.2,3717.9,2.68966689]
[1754344897253,0.9338,3718.1,3717.8,2.68975726]
[1754344897656,0.9338,3718.1,3717.9,2.68967799]
[1754344898361,0.9338,3718.1,3717.8,2.68976038]
[1754344898674,0.9338,3718.1,3717.7,2.8242194]
[1754344899440,0.9338,3718.1,3717.8,2.68975315]
[1754344899645,0.9338,3718.1,3717.8,2.68971407]
[1754344899841,0.9338,3718.1,3717.9,2.68968704]
[1754344900048,0.9338,3718.1,3717.9,2.68968485]
[1754344900242,0.4652,3718.1,3718.0,2.68961807]
[1754344900737,0.4652,3718.1,3717.9,2.68966594]
[1754344900937,0.4652,3718.1,3718.0,2.68961807]
[1754344901267,0.4652,3718.1,3717.9,2.68967686]
[1754344901774,4.278,3718.2,3718.1,2.68954573]
[1754344902069,1.0682,3718.4,3717.7,0.1344]
[1754344902275,4.268,3718.3,3718.1,2.68947768]
[1754344902977,0.9338,3719.1,3718.2,0.9581]
[1754344903143,0.002,3719.4,3718.3,0.4967]
[1754344903144,4.51758878,3719.0,3718.3,0.4967]
[1754344903469,7.51858878,3718.9,3718.8,2.68897714]
[1754344904053,4.51658878,3718.9,3718.8,2.68897714]
[1754344904741,4.51558878,3718.9,3718.8,3.18567714]
[1754344904942,0.25158878,3718.9,3718.8,3.64707714]
[1754344905182,4.51458878,3718.9,3718.8,3.64707714]
[1754344906169,4.263,3718.9,3718.8,3.64707714]
[1754344908257,0.002,3719.4,3719.3,2.68867797]
[1754344908568,0.25352041,3719.4,3719.3,2.68867797]
[1754344908788,1e-08,3719.4,3719.3,3.6243339]
[1754344908949,0.002,3719.6,3719.5,2.6885334]
[1754344909481,0.002,3719.6,3719.5,3.6040334]
[1754344909666,0.002,3719.6,3719.5,4.23330454]
[1754344913076,0.002,3719.6,3719.5,4.36770454]
[1754344916093,0.002,3719.6,3719.5,3.45220454]
[1754344916382,0.9048,3719.6,3718.8,2.68903947]
[1754344916549,0.9048,3719.6,3719.4,2.68856023]
[1754344916752,0.9028,3719.5,3719.2,2.68870119]
[1754344917060,0.9028,3719.4,3719.1,2.68879306]
[1754344917274,0.9028,3719.4,3719.2,2.68873766]
[1754344917506,0.1344,3719.5,3719.2,2.68873766]
[1754344917673,0.9028,3719.3,3719.2,2.68873766]
[1754344917878,0.9028,3719.3,3719.0,2.68883518]
[1754344918182,5.1508,3719.2,3719.0,2.68884704]
[1754344918382,4.248,3719.2,3719.0,2.68884704]
[1754344918579,4.248,3719.2,3719.1,2.68882256]
[1754344919761,4.247,3719.2,3719.1,2.68882256]
[1754344919966,4.247,3719.2,3719.1,3.28302256]
[1754344920173,4.247,3719.2,3719.1,2.82322256]
[1754344921082,5.1498,3719.2,3718.3,3.14916843]
[1754344921385,5.1498,3719.2,3718.9,0.1344]
[1754344921589,4.247,3719.2,3719.1,2.68882256]
[1754344922565,4.247,3719.2,3718.9,2.8233436]
[1754344922884,5.1498,3719.2,3719.0,2.68889073]
[1754344923085,4.247,3719.2,3719.1,2.68882256]
[1754344923290,4.247,3719.2,3719.0,2.6888868]
[1754344923487,4.247,3719.2,3719.1,2.68882256]
[1754344927308,4.372,3719.2,3719.1,2.68882256]
[1754344927475,0.125,3719.2,3719.1,3.6998354]
[1754344927680,1.41414337,3720.5,3719.3,0.55]
[1754344927969,0.002,3720.9,3719.3,0.55]
[1754344927970,1e-08,3720.9,3720.5,2.68775345]
[1754344928169,0.002,3721.5,3720.4,2.68788302]
[1754344928170,0.002,3721.5,3720.9,2.68752183]
[1754344928369,0.002,3721.5,3720.9,9.95164886]
[1754344928580,0.002,3721.5,3720.9,11.39702183]
[1754344928877,1e-08,3721.1,3721.0,5.68744961]
[1754344929081,1e-08,3721.1,3721.0,6.14724961]
[1754344929259,1e-08,3721.1,3721.0,2.68744961]
[1754344929874,1e-08,3721.1,3721.0,2.82104961]
[1754344930294,1e-08,3721.1,3720.3,6.93392915]
[1754344930295,1e-08,3721.1,3720.2,0.4598]
[1754344930485,0.9028,3721.0,3720.7,2.6876133]
[1754344930869,1e-08,3721.1,3720.6,0.1336]
[1754344931061,1.0364,3720.9,3720.3,0.1336]
[1754344931377,1.0364,3720.9,3719.9,5.63862118]
[1754344931378,0.9028,3720.8,3720.4,2.68782472]
[1754344931710,0.9028,3720.8,3720.0,0.1344]
[1754344931711,0.1336,3720.6,3720.0,0.1344]
[1754344931999,0.93639763,3720.5,3719.9,5.63862118]
[1754344932161,0.1344,3720.1,3719.9,5.63862118]
[1754344932549,0.1336,3720.5,3720.0,0.9155]
[1754344932676,4.24800001,3721.1,3721.0,2.68744961]
[1754344932863,4.24800001,3721.1,3721.0,3.60294961]
[1754344932864,1e-08,3721.1,3721.0,3.60294961]
[1754344933066,1e-08,3721.1,3721.0,3.75667483]
[1754344933791,1e-08,3721.1,3721.0,3.62307483]
[1754344934104,1e-08,3721.5,3721.4,5.68716074]
[1754344934302,1e-08,3721.5,3721.4,9.93816074]
[1754344934466,1e-08,3721.5,3721.4,6.28056074]
[1754344934665,1e-08,3721.5,3719.5,2.68847824]
[1754344934666,0.44360001,3721.5,3720.5,0.4598]
[1754344934863,0.9363895,3721.4,3720.9,0.1336]
[1754344935081,1.7038026,3721.3,3720.9,2.82111689]
[1754344935315,0.8010026,3721.3,3721.0,2.68744961]
[1754344935484,0.8010026,3721.3,3721.1,2.68737058]
[1754344935680,3.13360001,3721.5,3721.4,2.68716074]
[1754344935681,1e-08,3721.5,3721.4,2.68716074]
[1754344936284,1e-08,3721.5,3721.4,3.14696074]
[1754344936483,1e-08,3721.5,3721.4,3.28056074]
[1754344936682,1e-08,3721.5,3721.4,3.71266074]
[1754344936988,1e-08,3721.5,3721.4,3.28056074]
[1754344937814,1e-08,3721.5,3721.4,2.82076074]
[1754344938026,1e-08,3721.5,3721.3,2.68721552]
[1754344938027,0.91530001,3721.5,3721.3,2.68721552]
[1754344938229,0.9153,3721.4,3721.3,2.68721552]
[1754344938890,1.44549,3721.4,3720.8,2.68757611]
[1754344939128,0.1336,3721.2,3721.1,2.68736399]
[1754344939310,0.1336,3721.2,3720.9,2.68751481]
[1754344939311,0.1336,3721.4,3721.2,2.68729278]
[1754344939517,1e-08,3721.5,3720.7,2.68766303]
[1754344939518,0.9153,3721.3,3720.7,2.68766303]
[1754344939739,0.9153,3721.3,3721.0,2.68743414]
[1754344939740,0.1336,3721.2,3721.0,2.68743414]
[1754344939900,0.1336,3721.2,3720.8,2.68759135]
[1754344940222,0.1336,3721.2,3720.6,0.1336]
[1754344940223,0.4312,3721.1,3720.9,2.68751628]
[1754344940384,0.1336,3721.2,3721.1,2.68737738]
[1754344940879,1e-08,3721.5,3721.4,2.68716074]
[1754344942802,1e-08,3721.5,3721.4,4.26740219]
[1754344944629,1e-08,3721.5,3720.6,2.68771369]
[1754344944630,1e-08,3721.5,3720.8,3.0]
[1754344944808,4.81680001,3721.5,3721.3,2.68722838]
[1754344945003,4.38560001,3721.5,3721.3,2.68722838]
[1754344945207,4.38560001,3721.5,3721.0,2.68744961]
[1754344945606,4.38560001,3721.5,3720.9,2.8210804]
[1754344945825,4.38560001,3721.5,3721.2,2.68728353]
[1754344946250,0.13360001,3721.5,3721.4,2.68716074]
[1754344946411,1e-08,3721.5,3721.4,3.72996074]
[1754344947305,1e-08,3721.5,3721.4,0.1336]
[1754344947603,1e-08,3721.5,3720.7,0.1336]
[1754344947604,2.82077082,3721.4,3720.7,0.1336]
[1754344947808,0.1336,3721.2,3720.7,0.1336]
[1754344948009,0.9153,3721.1,3720.8,2.687581]
[1754344948206,0.9153,3721.1,3720.7,0.1336]
[1754344948428,0.9153,3721.1,3720.7,2.8212108]
[1754344948631,0.9153,3721.1,3720.8,2.68758901]
[1754344948932,0.9153,3721.1,3720.7,2.82123831]
[1754344949544,0.9153,3721.0,3720.7,0.1336]
[1754344949834,0.9153,3721.0,3720.0,2.68916642]
[1754344949835,2.82127272,3720.7,3720.1,2.68805073]
[1754344950149,0.1336,3720.5,3720.1,2.68805073]
[1754344950650,4.25,3720.9,3720.8,2.68759406]
[1754344950927,4.25,3721.2,3721.1,2.68737738]
[1754344951103,4.25,3721.2,3721.0,2.68743395]
[1754344951327,0.9153,3721.1,3720.2,2.68798454]
[1754344951630,4.68836,3721.2,3720.3,2.6879369]
[1754344951631,0.1336,3720.8,3720.3,2.6879369]
[1754344951798,0.4312,3721.0,3720.0,0.1354]
[1754344952003,0.1336,3721.1,3720.4,0.1336]
[1754344952197,0.1336,3721.3,3721.0,2.68739831]
[1754344952402,0.1336,3721.3,3721.2,2.68730517]
[1754344952602,4.3876,3721.3,3721.2,2.68730517]
[1754344953114,0.1336,3721.3,3721.2,3.27248552]
[1754344953458,4.3866,3721.3,3721.2,3.74958552]
[1754344953597,4.253,3721.3,3721.2,2.68730517]
[1754344954336,4.253,3721.3,3721.2,3.16440517]
[1754344954535,4.253,3721.3,3721.2,0.1336]
[1754344954701,4.253,3721.3,3720.9,0.1336]
[1754344954904,4.253,3721.3,3720.2,3.4321]
[1754344954905,0.1336,3721.0,3720.5,2.68775984]
[1754344955238,0.5648,3721.0,3720.5,2.68775984]
[1754344955444,0.1336,3721.0,3720.8,2.68758443]
[1754344955646,4.254,3721.1,3721.0,2.68744961]
[1754344955832,4.254,3721.1,3721.0,3.59664961]
[1754344956033,4.254,3721.1,3721.0,3.73024961]
[1754344956751,0.1336,3721.0,3720.1,2.68809638]
[1754344957045,7.85772916,3721.1,3720.1,2.68809638]
[1754344957046,0.1336,3720.8,3720.2,0.6115]
[1754344957230,4.255,3721.1,3720.7,2.68766629]
[1754344957231,4.3886,3721.1,3720.7,2.68766629]
[1754344957431,4.3886,3721.1,3720.9,2.68747595]
[1754344957650,4.3886,3721.1,3721.0,2.68744961]
[1754344957816,4.3926,3721.1,3721.0,2.68744961]
[1754344958020,4.3926,3721.1,3720.8,3.16467381]
[1754344958021,4.3926,3721.1,3720.8,0.4771]
[1754344958231,4.3926,3721.1,3720.5,0.1336]
[1754344958623,7.51928335,3721.1,3720.5,0.1336]
[1754344958826,4.83186,3721.1,3720.6,2.68773231]
[1754344959042,4.8238,3721.1,3720.7,2.68766416]
[1754344959714,4.3926,3721.1,3720.5,0.1336]
[1754344959918,1e-08,3721.5,3721.3,2.68723295]
[1754344960157,1e-08,3721.5,3721.4,2.70727936]
[1754344960328,1e-08,3721.5,3721.4,3.72996074]
[1754344960649,1e-08,3721.5,3721.4,4.64041186]
[1754344960852,1e-08,3721.5,3721.4,3.59761186]
[1754344961154,1e-08,3721.5,3721.4,4.20831186]
[1754344962018,1e-08,3721.5,3721.4,2.82076074]
[1754344962220,0.43120001,3721.5,3720.6,2.68773853]
[1754344962430,0.43120001,3721.5,3720.8,0.1336]
[1754344962431,0.1336,3721.4,3720.8,0.1336]
[1754344962630,2.68730517,3721.2,3720.1,2.68803077]
[1754344962833,0.1336,3720.8,3720.7,2.68766629]
[1754344963067,4.73579221,3721.1,3720.7,2.68766629]
[1754344963068,4.271,3721.1,3721.0,2.68744961]
[1754344963248,4.6981,3721.1,3720.6,0.1336]
[1754344963433,4.6981,3721.1,3720.0,0.001]
[1754344963434,0.1336,3720.7,3720.0,0.001]
[1754344963769,4.6981,3721.1,3720.0,0.001]
[1754344963770,4.271,3721.1,3720.8,2.68758224]
[1754344963973,4.271,3721.1,3720.1,0.4771]
[1754344963974,4.271,3721.1,3720.6,0.1336]
[1754344964127,0.1336,3720.9,3720.2,0.1336]
[1754344964326,4.271,3721.1,3721.0,2.68744961]
[1754344964620,5.1863,3721.1,3720.1,0.4771]
[1754344964824,1e-08,3721.5,3721.4,2.68716074]
[1754344965281,1e-08,3721.5,3720.9,0.4321]
[1754344965426,0.9153,3721.4,3720.1,2.68809978]
[1754344965774,1e-08,3721.5,3721.4,2.68716074]
[1754344966632,0.25119139,3721.5,3721.4,2.68716074]
[1754344966833,4.28600001,3721.5,3721.4,2.68716074]
[1754344967039,1e-08,3721.5,3721.4,2.68716074]
[1754344967228,4.28700001,3721.5,3721.4,2.68716074]
[1754344968136,4.28700001,3721.5,3721.4,4.1750873]
[1754344968137,1e-08,3721.5,3721.4,4.1750873]
[1754344968339,1e-08,3721.5,3721.4,3.2918053]
[1754344968546,1e-08,3721.5,3721.4,4.1750873]
[1754344969026,1e-08,3721.5,3721.4,3.7424873]
[1754344969362,1e-08,3721.9,3721.8,2.68687194]
[1754344969560,1e-08,3721.9,3721.8,3.22425495]
[1754344969759,1e-08,3721.9,3721.8,3.69505495]
[1754344969958,1e-08,3721.9,3719.8,2.68825313]
[1754344969959,1e-08,3721.9,3721.0,3.4708]
[1754344970196,0.44270001,3721.9,3721.8,2.68687194]
[1754344970399,1e-08,3721.9,3721.8,2.68687194]
[1754344970872,1e-08,3721.9,3721.8,3.15767194]
[1754344971078,1e-08,3721.9,3721.8,4.17674717]
[1754344971376,1e-08,3721.9,3721.8,3.27334717]
[1754344971684,1e-08,3721.9,3721.8,2.68687194]
[1754344971873,1e-08,3722.3,3722.2,2.6865832]
[1754344972464,1e-08,3722.3,3722.2,3.5899832]
[1754344974174,1e-08,3722.3,3722.2,2.6865832]
[1754344974381,1e-08,3722.3,3722.2,3.69470842]
[1754344974575,1e-08,3722.3,3722.2,4.26090842]
[1754344975483,1e-08,3722.3,3722.2,2.8201832]
[1754344975665,1e-08,3722.3,3722.2,3.7235832]
[1754344976498,1e-08,3722.7,3722.6,2.68629452]
[1754344977375,1e-08,3722.7,3722.6,6.60979087]
[1754344977705,1e-08,3722.7,3722.6,12.63946268]
[1754344977908,1e-08,3722.7,3722.6,5.35046268]
[1754344978280,1e-08,3722.7,3722.6,9.63846268]
[1754344978474,1e-08,3723.1,3723.0,2.6860059]
[1754344979009,1e-08,3723.1,3723.0,3.5894059]
[1754344979214,1e-08,3723.1,3723.0,4.61917786]
[1754344979511,1e-08,3723.1,3723.0,3.71577786]
[1754344979813,1e-08,3723.1,3723.0,2.8196059]
[1754344980267,1e-08,3723.1,3723.0,0.1336]
[1754344980471,1e-08,3723.1,3721.7,4.30709615]
[1754344980472,0.92390001,3723.1,3721.7,4.30709615]
[1754344980774,7.9314879,3723.0,3721.5,4.288]
[1754344981011,7.9314879,3723.0,3722.7,2.68622228]
[1754344981012,3.9239,3722.9,3722.7,2.68622228]
[1754344981216,4.288,3723.0,3722.9,2.68607805]
[1754344981911,1e-08,3723.1,3723.0,2.6860059]
[1754344982205,1e-08,3723.1,3723.0,3.96263307]
[1754344982381,1e-08,3723.1,3722.4,0.4708]
[1754344982582,1e-08,3723.1,3723.0,2.6860059]
[1754344983008,1e-08,3723.1,3723.0,3.1568059]
[1754344983210,1e-08,3723.1,3723.0,3.5894059]
[1754344983373,1e-08,3723.1,3723.0,6.60949503]
[1754344983573,1e-08,3723.1,3723.0,7.5149646]
[1754344983816,1e-08,3723.1,3723.0,4.5149646]
[1754344984113,1e-08,3723.1,3723.0,3.1568059]
[1754344984616,1e-08,3723.1,3723.0,3.60949503]
[1754344984910,1e-08,3723.1,3723.0,3.1568059]
[1754344985112,1e-08,3723.1,3723.0,2.6860059]
[1754344985613,1e-08,3723.1,3723.0,3.5894059]
[1754344985781,1e-08,3723.1,3723.0,4.64565568]
[1754344986282,1e-08,3723.1,3723.0,4.66574481]
[1754344986482,1e-08,3723.1,3723.0,7.66574481]
[1754344986684,1e-08,3723.1,3723.0,7.64565568]
[1754344987001,1e-08,3723.1,3723.0,7.21305568]
[1754344987314,1e-08,3723.1,3723.0,6.74225568]
[1754344987612,1e-08,3723.1,3723.0,8.02725568]
[1754344987979,1e-08,3723.1,3723.0,2.6860059]
[1754344988180,0.44270001,3723.1,3723.0,2.6860059]
[1754344988376,0.92390001,3723.1,3722.9,2.68606868]
[1754344988618,0.9239,3723.0,3722.9,2.68606868]
[1754344988982,0.9239,3723.0,3722.2,2.6865832]
[1754344989177,2.68620929,3722.8,3722.1,0.001]
[1754344989478,4.284,3722.8,3722.1,0.001]
[1754344989683,2.68649293,3722.4,3722.1,0.001]
[1754344989912,2.72007341,3722.4,3722.1,0.001]
[1754344990086,0.9239,3722.3,3722.1,0.001]
[1754344990292,5.72016549,3722.2,3722.1,0.001]
[1754344990527,7.5435347,3722.2,3722.1,0.001]
[1754344990688,8.0935347,3722.2,3722.1,0.001]
[1754344991222,8.34338995,3722.2,3722.1,0.001]
[1754344991792,38.7437472,3722.2,3722.1,0.001]
[1754344991988,38.34338995,3722.2,3722.1,0.001]
[1754344992230,37.79338995,3722.2,3722.1,0.001]
[1754344992754,7.5435347,3722.2,3722.1,0.001]
[1754344992955,7.7931867,3722.2,3722.1,0.001]
[1754344993460,7.79321076,3722.2,3722.1,0.001]
[1754344994011,12.08221076,3722.2,3722.1,0.001]
[1754344994212,42.63221076,3722.2,3722.1,0.001]
[1754344994725,12.63221076,3722.2,3722.1,0.001]
[1754344995256,42.63221076,3722.2,3722.1,0.001]
[1754344996147,9.39562756,3722.2,3722.1,0.001]
[1754344996347,7.7317,3722.2,3722.1,0.001]
[1754344996510,10.8939832,3722.2,3722.1,0.001]
[1754344996714,11.69347322,3722.2,3722.1,0.001]
[1754344997860,41.69347322,3722.2,3722.1,0.001]
[1754344998358,3.24949002,3722.2,3722.1,0.001]
[1754344998659,7.285,3722.2,3722.1,0.001]
[1754344999850,12.1781832,3722.2,3722.1,0.001]
[1754345000727,9.0159,3722.2,3722.1,0.001]
[1754345001324,11.7024832,3722.2,3722.1,0.001]
[1754345001543,12.1781832,3722.2,3722.1,0.001]
[1754345002056,42.1781832,3722.2,3722.1,0.001]
[1754345004351,42.4274302,3722.2,3722.1,0.001]
[1754345004565,3.23708853,3721.5,3721.4,0.001]
[1754345004718,41.14208644,3721.5,3721.4,0.001]
[1754345004922,42.03659784,3721.5,3721.4,0.001]
[1754345005124,44.05195509,3721.5,3721.4,1e-08]
[1754345005323,42.03659784,3721.5,3721.4,1e-08]
[1754345006437,42.28568086,3721.5,3721.4,1e-08]
[1754345006621,42.28568086,3721.5,3721.0,0.001]
[1754345006622,6.23737738,3721.1,3721.0,0.001]
[1754345006821,0.55,3720.2,3720.0,0.001]
[1754345007059,2.68801364,3720.3,3720.0,0.001]
[1754345007060,7.51609978,3720.1,3720.0,0.001]
[1754345007446,4.278,3720.1,3720.0,0.001]
[1754345007756,6.96609978,3720.1,3720.0,0.001]
[1754345008175,7.51609978,3720.1,3720.0,0.001]
[1754345008375,9.03414678,3720.1,3720.0,0.001]
[1754345008583,12.50984678,3720.1,3720.0,0.001]
[1754345008966,8.893647,3720.1,3720.0,0.001]
[1754345009289,8.343647,3720.1,3720.0,0.001]
[1754345009455,7.278,3720.1,3720.0,0.001]
[1754345009659,7.278,3720.1,3720.0,0.9583]
[1754345009868,4.278,3720.1,3720.0,0.4919]
[1754345010191,4.278,3720.1,3720.0,0.9583]
[1754345010356,4.278,3720.1,3720.0,0.4919]
[1754345010992,4.278,3720.1,3720.0,3.18007204]
[1754345011188,3.0,3720.5,3720.0,3.18007204]
[1754345011189,2.72866186,3721.1,3720.4,2.68788302]
[1754345011495,0.1336,3720.4,3720.0,0.4919]
[1754345011703,4.275,3720.3,3720.2,2.68802752]
[1754345012001,4.4104,3720.3,3720.2,2.68802752]
[1754345012382,4.4104,3720.3,3720.2,3.15442752]
[1754345012383,4.276,3720.3,3720.2,3.15442752]
[1754345012583,4.276,3720.3,3720.2,3.64532752]
[1754345014582,0.1336,3720.5,3720.4,2.68788302]
[1754345014783,0.1336,3720.8,3720.7,2.68766629]
[1754345014996,4.275,3720.8,3720.7,3.64496629]
[1754345015441,4.275,3720.8,3720.7,3.77856629]
[1754345015784,0.1336,3721.4,3721.3,2.68723295]
[1754345016027,4.275,3721.4,3721.3,2.68723295]
[1754345016235,4.275,3721.4,3721.3,3.17813295]
[1754345016895,4.275,3721.4,3721.3,2.68723295]
[1754345017689,4.275,3721.4,3721.3,3.17813295]
[1754345018521,4.275,3721.4,3720.9,0.6]
[1754345018522,4.275,3721.4,3720.9,1.0909]
[1754345018708,4.275,3721.4,3721.3,2.68723295]
[1754345019525,4.275,3721.4,3721.0,3.64474565]
[1754345019526,0.1336,3721.3,3720.7,0.4909]
[1754345019731,4.275,3721.4,3721.1,0.4909]
[1754345020442,0.1336,3721.1,3720.9,3.1539175]
[1754345020653,0.1336,3721.1,3721.0,2.68744961]
[1754345020956,4.4066,3721.1,3721.0,3.64474961]
[1754345021155,4.27,3721.1,3721.0,0.9573]
[1754345021351,4.27,3721.1,3721.0,3.17834961]
[1754345021716,4.27,3721.1,3721.0,4.54673136]
[1754345022342,4.27,3721.1,3721.0,4.68033136]
[1754345024252,0.1336,3721.8,3721.7,2.68694413]
[1754345024543,4.4046,3721.8,3721.7,2.68694413]
[1754345025040,4.4046,3721.8,3721.7,3.64424413]
[1754345025346,4.271,3721.8,3721.7,3.64424413]
[1754345026653,4.271,3721.8,3721.7,4.29073133]
[1754345026861,4.271,3721.8,3721.7,4.42433133]
[1754345027861,4.273,3721.8,3721.7,4.42433133]
[1754345028338,4.273,3721.8,3721.7,3.77784413]
[1754345028545,4.273,3721.8,3721.7,2.82054413]
[1754345028857,4.273,3721.8,3721.7,2.68694413]
[1754345031943,4.257,3721.8,3721.7,3.61314413]
[1754345032458,4.257,3721.8,3721.7,2.68694413]
[1754345034646,4.257,3721.8,3721.7,3.14334413]
[1754345035850,4.254,3721.8,3721.7,3.14334413]
[1754345040169,0.002,3721.8,3721.7,3.14334413]
[1754345040485,4.245,3721.8,3721.7,4.20954133]
[1754345041265,4.245,3721.8,3721.7,3.61314413]
[1754345041671,4.243,3721.8,3721.7,3.61314413]
[1754345042178,4.243,3721.8,3721.7,3.74674413]
[1754345042382,0.9084,3723.0,3721.7,3.74674413]
[1754345042383,0.2693,3725.3,3721.7,1.0598]
[1754345042591,1.35715193,3727.4,3721.7,1.0598]
[1754345042592,0.1336,3724.9,3724.6,2.68485206]
[1754345042741,0.1336,3724.9,3724.8,2.6847079]
[1754345042944,0.1336,3724.9,3724.8,5.70476458]
[1754345043166,0.4684,3726.0,3724.8,5.70476458]
[1754345043167,4.282,3725.7,3725.6,2.68413141]
[1754345043376,0.13632647,3726.7,3725.6,2.68413141]
[1754345043377,0.1336,3725.8,3725.7,2.68405937]
[1754345043554,0.1336,3725.8,3725.0,0.1336]
[1754345043555,1.04,3725.8,3725.0,0.1336]
[1754345043758,1.04,3725.8,3725.1,2.68449169]
[1754345043952,1.04,3725.8,3725.0,0.1336]
[1754345044156,0.03355074,3725.7,3725.0,0.1336]
[1754345044358,4.281,3725.8,3725.0,2.6844954]
[1754345044359,0.1336,3725.1,3725.0,2.6844954]
[1754345044559,0.1336,3725.1,3724.9,2.68462141]
[1754345044762,0.1336,3725.1,3724.5,0.1336]
[1754345044763,0.1336,3725.1,3725.0,2.68456375]
[1754345044972,4.281,3725.8,3725.6,2.68407285]
[1754345045159,4.4146,3725.8,3725.3,0.4564]
[1754345045363,0.93995074,3725.7,3725.0,0.1336]
[1754345045563,0.1336,3725.6,3725.3,2.6843473]
[1754345046250,0.1336,3725.6,3725.4,2.68425968]
[1754345046251,4.288,3725.5,3725.4,2.68425968]
[1754345046443,4.288,3725.5,3725.4,3.14065968]
[1754345046655,4.288,3725.5,3725.4,2.68425968]
[1754345046981,4.288,3725.5,3725.1,0.4564]
[1754345047185,4.288,3725.5,3725.3,2.68428712]
[1754345047553,4.726,3725.5,3725.1,2.68449169]
[1754345048050,4.288,3725.5,3725.2,2.68435985]
[1754345048576,4.288,3725.5,3725.0,0.1336]
[1754345048978,4.288,3725.5,3725.4,2.68427551]
[1754345049185,4.288,3725.5,3725.1,2.68449169]
[1754345049598,4.288,3725.5,3725.0,0.1336]
[1754345049898,4.288,3725.5,3725.2,2.68436824]
[1754345050787,5.1944,3725.5,3725.0,0.1336]
[1754345050992,5.1944,3725.5,3725.2,2.6844025]
[1754345050993,5.1964,3725.5,3725.2,2.6844025]
[1754345051301,4.728,3725.5,3725.3,2.68433673]
[1754345051495,4.29,3725.5,3725.4,2.68427551]
[1754345051864,4.29,3725.5,3725.4,3.14067551]
[1754345052065,0.002,3725.5,3725.4,4.23996238]
[1754345052265,0.002,3725.5,3725.4,8.64956238]
[1754345053166,0.002,3725.5,3725.4,2.81787551]
[1754345053367,0.002,3725.5,3725.4,3.14067551]
[1754345053588,0.002,3725.5,3725.4,2.68427551]
[1754345056211,0.002,3725.5,3725.4,3.14067551]
[1754345056569,0.002,3725.5,3725.4,3.60217551]
[1754345056910,0.002,3725.5,3725.4,4.26423825]
[1754345057302,0.002,3726.5,3726.4,2.68355517]
[1754345057501,1e-08,3726.5,3726.4,2.81715517]
[1754345057707,1e-08,3726.7,3726.6,2.68341115]
[1754345058000,1e-08,3726.7,3726.6,3.34889482]
[1754345058206,1e-08,3726.7,3726.6,7.41649482]
[1754345058374,1e-08,3726.7,3726.6,12.09587057]